bitfinex-derivatives/quotes_ETHF0:USTF0_20250912
["timestamp","ask_amount","ask_price","bid_price","bid_amount"]
[1757652536587,1.84380272,4519.7,4519.6,0.3135]
[1757652537784,1.84380272,4519.7,4519.5,0.1197]
[1757652538089,0.0088,4519.1,4519.0,0.6181]
[1757652538587,0.0088,4519.1,4519.0,0.8229]
[1757652541083,0.55676752,4519.1,4519.0,0.8229]
[1757652541683,0.55667297,4519.1,4519.0,0.8229]
[1757652542685,0.55667297,4519.1,4519.0,0.6181]
[1757652542894,0.55667297,4519.1,4519.0,0.8229]
[1757652543685,0.55667297,4519.1,4519.0,0.6181]
[1757652543893,0.55937297,4519.1,4519.0,0.4265]
[1757652544286,0.55667297,4519.1,4519.0,0.6181]
[1757652544494,1.83998321,4519.1,4519.0,0.6181]
[1757652545096,1.84268321,4519.1,4519.0,0.4265]
[1757652545794,1.84268321,4519.1,4519.0,0.3087]
[1757652546294,0.55937297,4519.1,4519.0,0.3087]
[1757652546489,1.84268321,4519.1,4519.0,0.3087]
[1757652547696,1.84268321,4519.1,4519.0,0.4265]
[1757652547896,1.83998321,4519.1,4519.0,0.6181]
[1757652548997,1.83998321,4519.1,4519.0,0.8229]
[1757652549490,0.0044,4520.1,4520.0,0.1178]
[1757652549695,0.54719651,4520.2,4520.0,0.5142]
[1757652549892,0.0088,4520.1,4520.0,0.1178]
[1757652550087,0.0088,4520.1,4520.0,0.3094]
[1757652550287,0.55592003,4520.1,4520.0,0.6181]
[1757652550990,0.55862003,4520.1,4520.0,0.4265]
[1757652551598,0.55862003,4520.1,4519.5,0.1178]
[1757652551795,0.0115,4519.8,4519.7,0.3087]
[1757652551992,0.2355,4519.8,4519.7,0.3087]
[1757652552191,0.77992003,4519.8,4519.7,0.3087]
[1757652552493,0.77992003,4519.8,4519.7,0.5003]
[1757652552899,2.06323027,4519.8,4519.7,0.5003]
[1757652554195,2.06323027,4519.8,4519.7,0.7051]
[1757652554395,0.77112003,4519.8,4519.7,0.7051]
[1757652554900,0.54712003,4519.8,4519.7,0.98327935]
[1757652555100,1.28771024,4520.5,4520.4,0.7051]
[1757652555300,2.05888348,4520.5,4520.4,0.7051]
[1757652556997,2.06328348,4520.5,4520.4,0.5003]
[1757652558199,2.06598348,4520.5,4520.4,0.3087]
[1757652558399,2.06598348,4520.5,4520.0,0.1178]
[1757652558596,1.29481024,4520.1,4520.0,0.4265]
[1757652558800,1.84198348,4520.1,4520.0,0.4265]
[1757652560099,1.83928348,4520.1,4520.0,0.4265]
[1757652560494,1.84198348,4520.1,4520.0,0.4265]
[1757652562904,1.83928348,4520.1,4519.5,0.1178]
[1757652563102,1.28331024,4519.6,4519.5,0.3094]
[1757652563308,1.83928348,4519.6,4519.5,0.3094]
[1757652563697,1.83928348,4519.6,4519.5,0.6181]
[1757652565208,1.83928348,4519.6,4519.5,0.8229]
[1757652565503,1.83488348,4519.6,4519.5,0.8229]
[1757652565707,1.83048348,4519.6,4519.5,0.8229]
[1757652565904,0.77117324,4519.6,4519.5,1.09521096]
[1757652566604,0.22807324,4519.6,4519.5,5.31647096]
[1757652566903,1.097367,4519.9,4519.8,0.3964]
[1757652567115,1.097367,4519.9,4519.8,0.97741096]
[1757652569603,1.503267,4519.9,4519.8,0.97741096]
[1757652570113,1.814367,4519.9,4519.8,0.97741096]
[1757652570410,1.814367,4519.9,4519.8,0.97730753]
[1757652571310,1.503267,4519.9,4519.8,0.97730753]
[1757652571609,1.097367,4519.9,4519.8,0.97730753]
[1757652572512,1.097367,4519.9,4519.8,0.7051]
[1757652574310,1.308067,4519.9,4519.8,0.7051]
[1757652574512,1.814367,4519.9,4519.8,0.7051]
[1757652574804,0.3111,4519.8,4519.5,0.1178]
[1757652575110,0.4059,4519.7,4519.6,0.97552505]
[1757652575504,0.4059,4519.7,4519.6,0.97556726]
[1757652575902,0.717,4519.7,4519.6,0.4926]
[1757652576107,1.814367,4519.7,4519.6,0.4926]
[1757652578616,2.36070832,4519.7,4519.6,0.2896]
[1757652579110,1.26334132,4519.7,4519.6,0.2896]
[1757652579316,2.36070832,4519.7,4519.6,0.4926]
[1757652581616,2.36070832,4519.7,4519.1,0.2896]
[1757652581816,1.503267,4519.2,4519.1,0.7032]
[1757652582017,2.04960832,4519.2,4519.1,0.97590235]
[1757652584520,1.85440832,4519.2,4519.1,0.97590235]
[1757652588924,2.04960832,4519.2,4519.1,0.97590235]
[1757652593623,2.04960832,4519.2,4519.1,0.7032]
[1757652593923,2.04960832,4519.2,4519.1,0.97631972]
[1757652595119,2.36070832,4519.2,4519.1,0.97631972]
[1757652596522,1.26334132,4519.2,4519.1,0.97631972]
[1757652596717,2.04982273,4519.2,4519.1,0.97631972]
[1757652597123,0.75725573,4519.2,4519.1,0.97631972]
[1757652597326,0.54655573,4519.2,4519.1,5.19759972]
[1757652597823,0.54655573,4519.2,4519.1,4.97631972]
[1757652601624,0.74435573,4519.2,4519.1,4.97631972]
[1757652602129,0.1978,4519.2,4519.1,4.97631972]
[1757652602721,1.097367,4519.3,4519.1,4.68671972]
[1757652602922,1.295167,4519.6,4519.5,0.8224]
[1757652603227,1.84194147,4519.6,4519.5,1.09551972]
[1757652604034,1.84194147,4519.6,4519.5,1.09563504]
[1757652605928,1.31969106,4521.0,4519.5,6.86816904]
[1757652606227,0.1253,4522.0,4520.9,1.5836886]
[1757652606424,0.1253,4522.0,4521.0,25.7095451]
[1757652606625,0.1253,4523.0,4521.9,2.194734]
[1757652606927,0.1253,4523.5,4522.9,1.289067]
[1757652607128,0.3231,4523.5,4523.4,0.4002]
[1757652607433,1.624367,4523.5,4523.4,1.0304565]
[1757652608130,0.8149,4523.5,4523.4,1.0304565]
[1757652608327,0.8149,4523.5,4523.4,0.8064565]
[1757652608536,0.8149,4523.5,4523.4,1.0304565]
[1757652609225,0.8149,4523.5,4523.4,1.2260565]
[1757652609534,0.2879,4523.5,4523.4,1.3671565]
[1757652612332,0.4132,4523.5,4523.4,1.3671565]
[1757652616433,0.611,4523.5,4523.4,1.2260565]
[1757652617037,0.611,4523.5,4523.4,1.3671565]
[1757652617840,0.4132,4523.5,4523.4,1.3671565]
[1757652620739,0.4132,4523.5,4523.4,1.1431565]
[1757652620935,0.611,4523.5,4523.4,1.3671565]
[1757652621637,0.611,4523.5,4523.4,1.2260565]
[1757652623034,0.8149,4523.5,4523.4,1.2260565]
[1757652623644,0.8149,4523.5,4523.4,24.5260565]
[1757652624143,0.8149,4523.5,4523.4,24.3020565]
[1757652624343,0.8149,4523.5,4523.4,25.6234235]
[1757652624537,0.611,4523.5,4523.4,25.6234235]
[1757652624842,0.611,4523.5,4523.4,25.7636235]
[1757652625347,0.4132,4523.5,4523.4,25.7636235]
[1757652627240,0.4132,4523.5,4523.4,25.81020025]
[1757652627649,0.8067,4523.5,4523.4,24.57263325]
[1757652627949,0.8067,4523.5,4523.4,24.57163325]
[1757652628640,0.8067,4523.5,4523.4,24.34863325]
[1757652628841,0.8067,4523.5,4523.4,24.57163325]
[1757652631445,0.8067,4523.5,4523.4,24.34863325]
[1757652631644,0.8067,4523.5,4523.4,24.57163325]
[1757652633152,0.8067,4523.5,4523.4,24.34863325]
[1757652633446,0.8067,4523.5,4523.4,24.57163325]
[1757652634349,0.8067,4523.5,4523.4,1.27163325]
[1757652635049,0.8067,4523.5,4523.4,24.57127315]
[1757652635251,0.662975,4523.5,4523.4,24.57127315]
[1757652635448,0.662975,4523.5,4523.4,24.85557315]
[1757652635653,0.144175,4523.5,4523.4,24.85557315]
[1757652636554,0.144175,4523.5,4523.4,24.52731179]
[1757652636853,0.342375,4523.5,4523.4,24.52731179]
[1757652637750,0.653475,4523.5,4523.4,0.72001179]
[1757652638054,5.36130245,4523.5,4523.4,0.31981179]
[1757652638252,5.36130245,4523.5,4523.4,0.54281179]
[1757652638843,5.14023244,4523.5,4523.4,0.54281179]
[1757652639049,5.14023244,4523.5,4523.4,0.74671179]
[1757652639447,1.14023244,4523.5,4523.4,0.74671179]
[1757652639847,0.48675744,4523.5,4523.4,1.22681179]
[1757652641251,0.3157,4523.5,4523.4,1.22681179]
[1757652642054,0.3157,4523.5,4523.4,1.00381179]
[1757652642354,0.3157,4523.5,4523.4,1.22681179]
[1757652643156,0.5139,4523.5,4523.4,1.22681179]
[1757652643455,0.6293,4523.5,4523.4,1.22681179]
[1757652644249,0.5139,4523.5,4523.4,1.22681179]
[1757652644455,0.3157,4523.5,4523.4,1.22681179]
[1757652644953,0.5139,4523.5,4523.4,1.22681179]
[1757652645250,0.6293,4523.5,4523.4,1.00381179]
[1757652645548,0.6293,4523.5,4523.4,0.31981179]
[1757652645549,2.10639073,4523.5,4523.4,0.31981179]
[1757652645751,2.59555428,4523.5,4523.4,0.31981179]
[1757652645948,1.31416355,4523.5,4523.4,0.54281179]
[1757652646542,1.31416355,4523.5,4523.4,0.49916748]
[1757652647357,0.825,4523.5,4523.4,0.70306748]
[1757652647654,1.31505579,4523.5,4523.4,0.70306748]
[1757652648249,0.825,4523.5,4523.4,0.4269]
[1757652648851,0.1154,4523.0,4522.9,0.684]
[1757652649051,0.5093,4523.5,4523.4,0.3997]
[1757652649350,1.11933999,4523.5,4523.4,0.684]
[1757652649557,0.3157,4523.5,4523.4,0.684]
[1757652650754,0.5139,4523.5,4523.4,0.684]
[1757652652150,0.6293,4523.5,4523.4,0.684]
[1757652655951,0.825,4523.5,4523.4,0.3997]
[1757652656555,0.825,4523.5,4523.4,0.6837]
[1757652658659,0.825,4523.5,4523.3,0.224]
[1757652659361,0.825,4523.5,4523.4,0.1984]
[1757652660063,0.825,4523.5,4523.4,0.1734]
[1757652661867,0.825,4523.5,4523.3,0.224]
[1757652662067,0.5324,4523.0,4522.9,1.7820886]
[1757652662365,0.8443,4523.0,4522.9,1.7820886]
[1757652662565,0.8443,4523.0,4522.9,1.9939886]
[1757652664980,0.8443,4523.0,4522.9,2.2529886]
[1757652665279,0.3119,4523.0,4522.9,2.2529886]
[1757652665576,0.635,4523.0,4522.9,1.8066886]
[1757652665776,0.8443,4523.0,4522.9,2.0050886]
[1757652666079,0.8443,4523.0,4522.9,2.2169886]
[1757652666280,0.8443,4523.0,4522.9,2.4759886]
[1757652670468,0.8443,4523.0,4522.9,2.2169886]
[1757652671480,0.8443,4523.0,4522.9,1.9939886]
[1757652671677,0.8443,4523.0,4522.9,2.2169886]
[1757652673083,0.635,4523.0,4522.9,2.4759886]
[1757652674277,0.3119,4523.0,4522.9,0.8923]
[1757652674484,0.1154,4523.5,4523.0,0.259]
[1757652674674,0.6281,4523.5,4523.4,0.6693]
[1757652674875,0.6281,4523.5,4523.4,0.4214]
[1757652674876,0.8374,4523.5,4523.4,0.4214]
[1757652676485,0.8374,4523.5,4523.4,0.6333]
[1757652676681,0.8374,4523.5,4523.4,0.8923]
[1757652677383,0.8374,4523.5,4523.4,0.6333]
[1757652679184,0.8374,4523.5,4523.4,0.4103]
[1757652679383,0.8374,4523.5,4523.4,0.6333]
[1757652679580,0.8374,4523.5,4523.4,0.4103]
[1757652679784,0.8374,4523.5,4523.4,0.6333]
[1757652679980,0.6281,4523.5,4523.4,0.8923]
[1757652680185,0.3119,4523.5,4523.4,0.8923]
[1757652681188,0.3119,4524.0,4523.9,0.6693]
[1757652681381,0.3119,4524.0,4523.9,0.8923]
[1757652681884,0.5127,4524.0,4523.9,0.8923]
[1757652682274,0.5127,4524.0,4523.9,1.17015342]
[1757652682275,0.635,4524.0,4523.9,1.17015342]
[1757652685192,0.5127,4524.0,4523.9,1.17015342]
[1757652685395,0.635,4524.0,4523.9,1.17015342]
[1757652687994,0.635,4524.0,4523.9,1.16993078]
[1757652688595,0.635,4524.0,4523.9,1.1698959]
[1757652691789,0.3119,4524.0,4523.9,1.1698959]
[1757652691989,0.5344,4524.5,4524.4,0.2034]
[1757652692191,0.5344,4524.5,4524.4,0.4809959]
[1757652692696,0.8352,4524.5,4524.4,0.4809959]
[1757652693894,1.93015633,4524.5,4524.4,0.2775959]
[1757652695100,0.8352,4524.5,4524.4,0.2775959]
[1757652695400,1.93015633,4524.5,4524.4,0.2775959]
[1757652695897,0.8352,4524.5,4524.4,0.2775959]
[1757652699190,0.8352,4524.5,4523.3,1.57901412]
[1757652699191,0.4091,4523.7,4523.6,0.088]
[1757652699390,0.7099,4523.7,4523.6,0.8022]
[1757652700299,0.7099,4523.7,4523.6,0.7142]
[1757652700492,0.7099,4523.7,4523.6,0.9372]
[1757652701199,0.7099,4523.7,4523.6,0.7142]
[1757652701402,0.7099,4523.7,4523.6,0.9372]
[1757652703395,0.7099,4523.7,4523.6,0.7142]
[1757652703596,0.7099,4523.7,4523.0,0.1251]
[1757652703597,0.4091,4523.2,4523.1,1.78241412]
[1757652703803,0.7099,4523.2,4523.1,0.7342]
[1757652705189,0.8271,4523.0,4522.9,0.2034]
[1757652705393,0.8271,4523.0,4522.9,0.4264]
[1757652705700,0.8271,4523.0,4522.9,0.7342]
[1757652705901,0.8271,4523.0,4522.9,0.9372]
[1757652706398,0.8271,4523.0,4522.9,0.7142]
[1757652706601,0.8271,4523.0,4522.9,0.2034]
[1757652706901,0.4091,4522.9,4522.8,0.223]
[1757652707103,0.4091,4522.9,4522.3,1.88681412]
[1757652707405,0.4091,4522.9,4522.4,0.223]
[1757652707603,0.4091,4522.5,4522.4,0.7142]
[1757652707800,0.8271,4522.5,4522.4,0.9372]
[1757652710603,0.7099,4522.5,4522.4,0.9372]
[1757652712707,0.7099,4522.5,4522.4,0.7142]
[1757652712708,0.8271,4522.5,4522.4,0.7142]
[1757652712903,0.8271,4522.5,4522.4,0.4264]
[1757652713208,0.5092,4522.5,4522.4,0.9372]
[1757652714608,0.7099,4522.5,4522.4,0.9372]
[1757652715504,0.7099,4522.5,4522.4,0.7142]
[1757652715805,0.7099,4522.5,4522.4,0.9372]
[1757652716402,0.3008,4522.4,4522.1,0.3078]
[1757652716709,0.7099,4522.1,4522.0,0.5112]
[1757652717010,0.7099,4521.9,4521.8,0.5112]
[1757652717205,0.7099,4521.9,4521.8,0.7142]
[1757652717610,0.7099,4521.9,4521.8,0.9372]
[1757652719903,0.7099,4521.9,4521.8,0.6294]
[1757652720404,0.7099,4521.9,4521.8,0.9268]
[1757652721707,0.5092,4521.9,4521.8,2.02175633]
[1757652726317,0.7144,4522.5,4522.4,0.6996]
[1757652726518,0.5041,4522.5,4522.4,0.9226]
[1757652726821,0.8399,4522.5,4522.4,0.6252]
[1757652727016,0.8399,4522.5,4522.4,0.417]
[1757652727417,0.8399,4522.5,4522.4,0.7144]
[1757652728016,0.8399,4522.5,4522.4,0.4914]
[1757652728318,0.8399,4522.5,4522.4,0.6996]
[1757652729616,0.7144,4522.5,4522.4,0.6996]
[1757652730118,0.5041,4522.9,4522.8,0.6996]
[1757652730618,0.7144,4522.9,4522.8,0.6996]
[1757652740617,0.5401,4522.5,4522.4,0.4914]
[1757652740811,0.8399,4522.5,4522.4,0.4914]
[1757652741923,0.8399,4522.5,4522.4,0.194]
[1757652742227,0.7144,4522.1,4522.0,1.77301412]
[1757652742417,0.7144,4522.1,4522.0,0.4914]
[1757652742721,0.7144,4522.1,4522.0,0.6996]
[1757652745930,0.7144,4522.1,4522.0,0.194]
[1757652746229,0.4146,4521.6,4521.5,2.27861412]
[1757652746531,0.7144,4521.6,4521.5,0.9226]
[1757652751329,0.7026,4522.4,4522.3,0.5156]
[1757652751526,0.7026,4522.4,4522.3,0.7255]
[1757652761146,0.4949,4522.4,4522.3,0.7255]
[1757652761347,0.7026,4522.4,4522.3,0.7255]
[1757652762145,0.4949,4522.4,4522.3,0.7255]
[1757652763143,0.5325,4523.0,4522.9,0.2099]
[1757652763339,1.04895849,4523.0,4522.9,0.2099]
[1757652763536,1.34455849,4523.0,4522.9,0.2099]
[1757652766449,1.34455849,4523.0,4522.7,0.3125]
[1757652766748,0.8281,4523.0,4522.7,0.3125]
[1757652769954,0.407,4522.2,4522.1,0.223]
[1757652770149,0.7026,4522.2,4522.1,0.223]
[1757652770345,0.7026,4522.2,4522.1,0.4329]
[1757652770551,0.7026,4522.2,4522.1,0.7454]
[1757652770752,0.7026,4522.2,4522.1,0.9485]
[1757652771051,0.7026,4522.2,4522.1,0.7255]
[1757652771351,0.7026,4522.2,4522.1,0.2099]
[1757652773956,0.7026,4522.2,4521.8,0.3125]
[1757652774256,0.7026,4522.2,4521.7,0.223]
[1757652774456,0.7026,4522.2,4521.8,0.3125]
[1757652774649,0.7026,4522.2,4521.7,0.223]
[1757652775049,0.7026,4522.2,4521.8,0.3125]
[1757652775451,0.7026,4522.2,4521.5,1.70411412]
[1757652775743,0.2956,4522.1,4521.6,0.223]
[1757652775948,0.4949,4521.7,4521.6,0.636]
[1757652776448,0.4949,4521.7,4521.6,0.9485]
[1757652777256,0.7026,4521.7,4521.6,0.7255]
[1757652777655,0.7026,4521.7,4521.6,0.636]
[1757652778346,0.7026,4521.7,4521.6,0.9279]
[1757652780358,0.7026,4521.7,4521.6,0.2099]
[1757652781158,0.7026,4521.7,4521.6,0.5018]
[1757652781763,0.7026,4521.7,4521.6,0.6971]
[1757652782859,0.2984,4522.2,4522.0,0.1227]
[1757652783059,0.5067,4522.2,4522.1,0.9069]
[1757652783266,0.6989,4522.2,4522.1,0.9069]
[1757652784660,0.2984,4523.7,4522.5,0.5147]
[1757652784852,0.1269,4524.5,4523.6,0.6839]
[1757652785057,0.1269,4524.5,4523.9,0.2919]
[1757652785058,0.2984,4524.4,4523.9,0.2919]
[1757652785257,0.6989,4524.4,4524.3,0.6839]
[1757652785463,0.6989,4524.4,4524.3,0.96696225]
[1757652786255,0.2083,4524.4,4524.3,0.96632513]
[1757652786461,0.2984,4524.7,4524.6,0.6839]
[1757652786663,0.2984,4524.7,4524.6,0.96632513]
[1757652786859,0.5067,4524.7,4524.6,0.96632513]
[1757652787260,0.5067,4525.4,4525.3,0.6839]
[1757652787462,0.5067,4525.4,4525.3,0.96632513]
[1757652788265,0.6989,4525.4,4525.3,0.96632513]
[1757652788464,0.6989,4525.4,4525.3,0.47912513]
[1757652788661,0.6989,4525.4,4525.3,0.28242513]
[1757652789169,0.6989,4525.4,4525.2,0.224]
[1757652789963,0.6989,4525.4,4524.8,0.2919]
[1757652790163,0.5274,4525.0,4524.9,0.47823187]
[1757652790359,0.8258,4525.0,4524.9,0.47823187]
[1757652790861,0.6989,4525.0,4524.9,0.96543187]
[1757652791770,0.8258,4525.0,4524.9,0.67353187]
[1757652792769,0.6989,4525.1,4525.0,0.6839]
[1757652793270,0.6989,4525.1,4525.0,0.1967]
[1757652793475,0.6989,4525.1,4524.9,0.223]
[1757652793667,0.5274,4525.0,4524.9,0.223]
[1757652793868,0.8258,4525.0,4524.9,0.223]
[1757652794772,0.8258,4525.0,4524.9,0.4197]
[1757652794976,0.6989,4525.0,4524.9,0.9069]
[1757652795175,0.5067,4525.0,4524.9,0.9069]
[1757652796074,0.1269,4525.5,4524.9,0.9069]
[1757652796075,0.2984,4525.4,4524.9,0.615]
[1757652796267,0.2984,4525.3,4525.1,0.2919]
[1757652796467,0.5067,4525.3,4525.2,0.6839]
[1757652797574,0.6989,4525.3,4525.2,0.6839]
[1757652799576,0.6989,4525.3,4525.2,0.392]
[1757652800478,0.6989,4525.3,4524.9,0.5149]
[1757652800479,0.6989,4525.3,4524.9,0.2919]
[1757652800678,0.8258,4525.0,4524.9,0.4886]
[1757652800886,0.8258,4525.0,4524.9,0.7116]
[1757652801182,0.8258,4525.0,4524.9,0.9069]
[1757652801473,0.8258,4525.0,4524.9,0.4197]
[1757652801872,0.8258,4525.0,4524.9,0.7116]
[1757652802069,0.8258,4525.0,4524.9,0.4197]
[1757652802472,0.8258,4525.0,4524.9,0.7116]
[1757652802683,0.8258,4525.0,4524.9,0.9069]
[1757652804180,0.8258,4525.0,4524.9,0.615]
[1757652807080,0.8258,4525.0,4524.9,0.4197]
[1757652808285,0.8258,4525.0,4524.9,0.48739514]
[1757652809685,0.8258,4525.0,4524.9,0.29069514]
[1757652810378,0.8258,4525.0,4524.9,0.49129514]
[1757652810679,0.5067,4525.0,4524.9,0.99599514]
[1757652810884,0.1269,4525.5,4524.9,1.97266245]
[1757652811086,0.5026,4525.4,4525.3,0.3995]
[1757652811284,0.7014,4525.4,4525.3,0.3995]
[1757652811483,0.7014,4525.4,4525.3,0.7053]
[1757652812275,0.7014,4525.4,4525.3,0.99677646]
[1757652815294,1.21689082,4525.4,4525.3,0.99677646]
[1757652817889,2.31133863,4525.4,4525.3,0.49207646]
[1757652818089,1.21689082,4525.4,4525.3,0.79787646]
[1757652819492,1.2181979,4525.4,4525.3,0.79787646]
[1757652819690,1.2181979,4525.4,4525.3,0.29147646]
[1757652819891,1.2181979,4525.4,4525.3,0.49207646]
[1757652820394,1.2181979,4525.4,4525.3,0.2006]
[1757652820894,1.2181979,4525.4,4525.3,0.7053]
[1757652822699,0.7168979,4525.4,4525.3,1.79974781]
[1757652822899,1.0193979,4525.4,4525.3,1.79974781]
[1757652825096,1.0193979,4525.4,4525.3,0.7053]
[1757652825297,1.2181979,4525.4,4525.3,0.7053]
[1757652826303,1.21811282,4525.4,4525.3,0.7053]
[1757652827501,0.7014,4525.4,4525.3,0.7053]
[1757652834714,0.7014,4525.4,4525.3,0.2006]
[1757652837520,0.7014,4525.4,4525.3,0.5064]
[1757652838320,0.7014,4525.4,4525.3,0.2006]
[1757652838615,0.2942,4525.3,4524.7,1.09444781]
[1757652838820,0.4035,4524.9,4524.8,0.194]
[1757652839014,0.6977,4524.9,4524.8,0.4812]
[1757652843120,0.1216,4524.5,4524.4,2.06021412]
[1757652843425,0.8193,4524.5,4524.4,0.7042]
[1757652843625,0.8193,4524.5,4524.4,0.9099]
[1757652847824,0.8193,4524.5,4524.4,0.417]
[1757652848327,0.8193,4524.5,4524.4,0.7042]
[1757652848521,0.8193,4524.5,4524.4,0.417]
[1757652849625,0.8193,4524.5,4524.4,0.7042]
[1757652849826,0.8193,4524.5,4524.4,0.417]
[1757652850724,0.5251,4524.5,4524.0,1.38164781]
[1757652851025,0.5251,4524.5,4523.5,33.53371412]
[1757652851026,0.6977,4524.2,4524.1,0.194]
[1757652851220,0.6977,4524.2,4524.1,0.223]
[1757652851826,0.6977,4524.2,4524.1,0.417]
[1757652852532,0.6977,4524.2,4524.1,0.7042]
[1757652853223,0.6977,4524.2,4524.1,0.9099]
[1757652853625,0.6977,4524.2,4524.1,0.194]
[1757652855724,0.6977,4524.2,4524.1,0.4812]
[1757652856820,0.6977,4524.2,4524.1,0.6869]
[1757652859131,0.2942,4524.2,4524.1,0.6869]
[1757652859331,0.2942,4524.5,4524.4,0.3997]
[1757652859531,0.5027,4524.5,4524.4,0.6869]
[1757652863335,0.5027,4524.5,4524.4,1.78134781]
[1757652868644,0.7113,4524.9,4524.8,0.5061]
[1757652868938,0.7113,4524.9,4524.8,0.7002]
[1757652871729,0.7113,4524.9,4524.8,0.3909]
[1757652872035,0.7113,4524.9,4524.8,0.1941]
[1757652875943,0.7113,4524.9,4524.6,0.3093]
[1757652876141,0.292,4524.8,4524.3,0.5323]
[1757652876338,0.292,4524.3,4524.2,0.1968]
[1757652876538,0.7113,4524.3,4524.2,0.7002]
[1757652878545,0.499,4524.3,4524.2,0.7002]
[1757652885249,0.292,4524.9,4524.2,0.3909]
[1757652885449,0.292,4524.9,4524.3,0.3093]
[1757652885745,0.499,4524.4,4524.3,0.7002]
[1757652886544,0.7113,4524.4,4524.3,0.7002]
[1757652893055,0.1216,4525.0,4524.3,0.9232]
[1757652893254,0.1269,4526.0,4525.4,0.5034]
[1757652893255,0.5346,4525.5,4525.4,0.5034]
[1757652893444,1.0573717,4525.5,4525.4,0.7002]
[1757652893749,0.7113,4525.5,4525.4,0.7002]
[1757652894553,0.8331,4525.5,4525.4,0.7002]
[1757652895150,0.8331,4525.5,4525.4,0.1941]
[1757652895860,0.8331,4525.5,4525.4,0.5034]
[1757652896057,0.8331,4525.5,4525.4,0.7002]
[1757652896357,0.7113,4525.5,4525.4,0.7002]
[1757652897946,0.8376,4525.5,4525.4,0.7002]
[1757652898942,0.8376,4525.5,4525.4,0.3909]
[1757652900350,0.8376,4525.5,4524.9,0.223]
[1757652900652,0.8219,4525.0,4524.9,0.9127]
[1757652901152,0.6956,4525.0,4524.9,0.9127]
[1757652903149,0.6956,4525.0,4524.9,0.6897]
[1757652903350,0.6956,4525.0,4524.9,0.9127]
[1757652904057,0.4843,4525.0,4524.9,0.9127]
[1757652904255,0.2879,4525.4,4524.9,0.6193]
[1757652904557,0.534,4525.5,4525.4,0.6897]
[1757652905056,0.6956,4525.5,4525.4,0.6897]
[1757652905555,0.8219,4525.5,4525.4,0.6897]
[1757652910759,0.57446451,4526.5,4525.6,0.2934]
[1757652911055,0.74279737,4526.4,4525.7,0.2934]
[1757652911257,0.52183737,4526.3,4525.7,0.2934]
[1757652911561,0.22095,4526.2,4525.7,0.2934]
[1757652911853,0.74278737,4526.1,4526.0,0.4175]
[1757652912055,1.80270188,4526.1,4525.5,0.1241]
[1757652912251,0.74279737,4526.0,4525.5,0.1241]
[1757652912452,0.52183737,4525.9,4525.6,0.2934]
[1757652912753,0.52183737,4525.9,4525.5,0.1241]
[1757652913058,0.52191363,4525.8,4525.5,0.1241]
[1757652913261,1.50182451,4526.1,4525.6,0.2934]
[1757652913452,0.52195203,4526.0,4525.6,0.2934]
[1757652913756,0.52195203,4525.9,4525.6,0.2934]
[1757652914056,0.52195203,4525.8,4525.6,0.2934]
[1757652914261,1.28086451,4526.1,4525.6,0.2934]
[1757652914460,0.52199784,4526.0,4525.6,0.2934]
[1757652914660,0.52199784,4525.9,4525.6,0.2934]
[1757652914958,0.52199784,4525.8,4525.6,0.2934]
[1757652915258,1.28086451,4526.1,4526.0,0.4175]
[1757652915459,1.80291667,4526.1,4526.0,0.4175]
[1757652915960,0.52205216,4526.1,4526.0,0.4175]
[1757652916363,0.52205216,4526.1,4526.0,0.6139]
[1757652919365,0.52205216,4526.1,4526.0,0.4175]
[1757652919973,0.52205216,4526.1,4526.0,0.6139]
[1757652921068,0.52205216,4526.1,4526.0,0.8138]
[1757652925263,0.223,4526.8,4526.7,0.6897]
[1757652925565,0.223,4526.8,4526.7,0.4898]
[1757652925768,0.74541909,4526.8,4526.7,0.4898]
[1757652926960,0.74541909,4526.8,4526.7,0.6897]
[1757652926961,0.52241909,4526.8,4526.7,0.6897]
[1757652927163,0.223,4527.1,4527.0,0.8138]
[1757652927367,0.74509796,4527.1,4527.0,0.8138]
[1757652929065,0.52209796,4527.1,4527.0,0.8138]
[1757652929270,0.74509796,4527.1,4527.0,0.8138]
[1757652930267,0.74509796,4527.1,4527.0,0.4175]
[1757652930860,0.74509796,4527.1,4527.0,0.8171]
[1757652934272,0.52209796,4527.1,4527.0,0.8171]
[1757652934472,1.83896826,4527.1,4527.0,0.8171]
[1757652934870,0.74509796,4527.1,4527.0,0.8171]
[1757652935171,1.83896826,4527.1,4527.0,0.8171]
[1757652935470,0.74509796,4527.1,4527.0,0.8171]
[1757652935771,0.52209796,4527.1,4527.0,1.9109703]
[1757652935973,0.2083,4528.1,4528.0,0.5207]
[1757652936263,1.5251703,4528.1,4528.0,0.8293]
[1757652936466,0.6295,4528.1,4528.0,0.8293]
[1757652936776,1.7233703,4528.1,4528.0,0.8293]
[1757652936966,1.9138703,4528.1,4528.0,0.4297]
[1757652937171,1.9138703,4528.1,4527.6,0.3086]
[1757652937470,1.6908703,4527.7,4527.6,0.3086]
[1757652937673,1.9138703,4527.7,4527.6,0.3086]
[1757652938174,1.7233703,4527.7,4527.1,0.3086]
[1757652938467,1.6908703,4527.2,4527.1,0.3086]
[1757652938665,1.6908703,4527.2,4527.1,0.5166]
[1757652941075,0.597,4527.2,4527.1,0.5166]
[1757652941277,1.6908703,4527.2,4527.1,0.5166]
[1757652943575,1.6908703,4527.2,4527.1,0.3086]
[1757652944073,0.4065,4526.7,4526.6,0.5166]
[1757652944277,0.2083,4526.7,4526.6,0.7082]
[1757652944575,1.0938703,4526.9,4526.6,0.3996]
[1757652944771,1.3021703,4526.9,4526.8,0.3996]
[1757652944975,1.3021703,4526.9,4526.8,0.7082]
[1757652948078,1.5003703,4526.9,4526.8,0.7082]
[1757652948375,1.6908703,4526.9,4526.8,0.7082]
[1757652949174,2.21017497,4526.9,4526.8,0.7082]